fUSD/lending_fUSD_20240630
["ID","MTS","AMOUNT","RATE_DAILY","PERIOD"]
[330729082,1719739871795,-1987.89,0.00014216,3]
[330729083,1719739871804,-643.52,0.00014216,3]
[330729084,1719739871814,-503.80505786,0.00014216,3]
[330729085,1719739871825,-1273.29,0.00014216,3]
[330729086,1719739871834,-1111.01,0.00014216,3]
[330729087,1719739871843,-1971.06,0.00014216,3]
[330729088,1719739871853,-694.74,0.00014216,3]
[330729089,1719739871863,-1262.95,0.00014216,3]
[330729090,1719739871872,-1016.39,0.00014216,2]
[330729091,1719739871881,-1030.87,0.00014216,3]
[330729092,1719739871891,-500.0,0.00014216,3]
[330729093,1719739871900,-930.51,0.00014216,3]
[330729094,1719739871909,-1571.79,0.00014216,3]
[330729095,1719739871919,-928.02,0.00014216,3]
[330729096,1719739871928,-1052.84,0.00014216,3]
[330729097,1719739871937,-794.74,0.00014216,3]
[330729098,1719739871946,-662.31,0.00014216,3]
[330729099,1719739871955,-1918.03,0.00014216,3]
[330729100,1719739871964,-500.0,0.00014216,3]
[330729101,1719739871974,-500.0,0.00014216,3]
[330729102,1719739871983,-500.0,0.00014216,3]
[330729103,1719739871992,-1025.86,0.00014216,3]
[330729104,1719739872001,-1310.38,0.00014216,3]
[330729105,1719739872010,-500.0,0.00014216,3]
[330729106,1719739872019,-1401.97,0.00014216,3]
[330729107,1719739872028,-1235.75,0.00014216,3]
[330729108,1719739872037,-1604.29,0.00014216,3]
[330729109,1719739872046,-580.77,0.00014216,3]
[330729110,1719739872055,-500.0,0.00014216,3]
[330729111,1719739872064,-2871.67,0.00014216,3]
[330729112,1719739872073,-873.51,0.00014216,3]
[330729113,1719739872082,-500.0,0.00014216,3]
[330729114,1719739872092,-500.0,0.00014216,3]
[330729115,1719739872101,-818.52,0.00014216,3]
[330729116,1719739872110,-500.0,0.00014216,3]
[330729117,1719739872119,-500.0,0.00014216,3]
[330729118,1719739872128,-893.56,0.00014216,3]
[330729119,1719739872138,-718.28,0.00014216,3]
[330729120,1719739872147,-2298.2,0.00014216,2]
[330729121,1719739872156,-1027.1,0.00014216,3]
[330729122,1719739872165,-2761.6,0.00014216,3]
[330729123,1719739872174,-1108.92,0.00014216,3]
[330729124,1719739872183,-724.22,0.00014216,3]
[330729125,1719739872192,-1145.26,0.00014216,3]
[330729126,1719739872201,-1114.9,0.00014216,3]
[330729127,1719739872210,-525.34,0.00014216,3]
[330729128,1719739872220,-1467.54,0.00014216,3]
[330729129,1719739872229,-1210.62,0.00014216,3]
[330729130,1719739872238,-2167.62,0.00014216,3]
[330729131,1719739872247,-500.0,0.00014216,3]
[330729132,1719739872256,-944.14,0.00014216,3]
[330729133,1719739872265,-500.0,0.00014216,3]
[330729134,1719739872274,-555.27,0.00014216,3]
[330729135,1719739872283,-613.12,0.00014216,3]
[330729136,1719739872292,-500.0,0.00014216,3]
[330729137,1719739872301,-500.0,0.00014216,3]
[330729138,1719739872310,-1138.91,0.00014216,3]
[330729139,1719739872320,-689.68,0.00014216,3]
[330729140,1719739872329,-1342.37,0.00014216,3]
[330729141,1719739872338,-1207.08,0.00014216,3]
[330729142,1719739872347,-1100.15170826,0.00014216,3]
[330729143,1719739874108,-500.0,0.00013996,3]
[330729144,1719739874118,-223.13829174,0.00014216,3]
[330729145,1719739874128,-1116.79,0.00014216,3]
[330729146,1719739874138,-799.39,0.00014216,3]
[330729147,1719739874148,-500.0,0.00014216,3]
[330729148,1719739874158,-500.0,0.00014216,3]
[330729149,1719739874168,-500.0,0.00014216,3]
[330729150,1719739874178,-1325.73,0.00014216,3]
[330729151,1719739874190,-151.0,0.00014216,2]
[330729152,1719739874201,-280.751819,0.00014216,2]
[330729153,1719739874212,-151.0,0.00014216,2]
[330729154,1719739874222,-1107.58,0.00014216,3]
[330729155,1719739874232,-280.751819,0.00014216,2]
[330729156,1719739874243,-500.0,0.00014216,3]
[330729157,1719739874254,-151.0,0.00014216,2]
[330729158,1719739874264,-835.89,0.00014216,3]
[330729159,1719739874274,-203.633033,0.00014216,2]
[330729160,1719739874285,-511.87,0.00014216,3]
[330729161,1719739874296,-996.84,0.00014216,3]
[330729162,1719739874307,-203.633033,0.00014216,2]
[330729163,1719739874318,-781.58,0.00014216,3]
[330729164,1719739874328,-1032.68,0.00014216,3]
[330729165,1719739874338,-500.0,0.00014216,3]
[330729166,1719739874348,-500.0,0.00014216,3]
[330729167,1719739874358,-4771.64,0.00014216,3]
[330729168,1719739874369,-500.0,0.00014217,3]
[330729169,1719739874379,-500.0,0.00014217,3]
[330729170,1719739874390,-500.0,0.00014217,3]
[330729171,1719739874400,-500.0,0.00014217,3]
[330729172,1719739874410,-500.0,0.00014217,3]
[330729173,1719739874419,-500.0,0.00014217,3]
[330729174,1719739874429,-741.28,0.00014217,3]
[330729175,1719739874439,-500.0,0.00014217,3]
[330729176,1719739874451,-500.0,0.00014217,3]
[330729177,1719739874460,-500.0,0.00014217,3]
[330729178,1719739874471,-500.0,0.00014217,3]
[330729179,1719739874480,-500.0,0.00014217,3]
[330729180,1719739874491,-2500.0,0.00014217,3]
[330729181,1719739874502,-581.11,0.00014217,3]
[330729182,1719739874512,-500.0,0.00014217,3]
[330729183,1719739874521,-500.0,0.00014217,3]
[330729184,1719739874531,-500.0,0.00014217,3]
[330729185,1719739874545,-500.0,0.00014217,3]
[330729186,1719739874555,-500.0,0.00014217,3]
[330729187,1719739874565,-500.0,0.00014217,3]
[330729188,1719739874577,-500.0,0.00014217,3]
[330729189,1719739874587,-500.0,0.00014217,3]
[330729190,1719739874597,-500.0,0.00014217,3]
[330729191,1719739874608,-500.0,0.00014217,3]
[330729192,1719739874619,-649.92,0.00014217,3]
[330729193,1719739874630,-500.0,0.00014217,3]
[330729194,1719739874639,-159.03727524,0.00014217,3]
[330729195,1719739874649,-500.0,0.00014217,3]
[330729196,1719739874659,-500.0,0.00014217,3]
[330729197,1719739874669,-500.0,0.00014217,3]
[330729198,1719739874679,-500.0,0.00014217,3]
[330729199,1719739874689,-500.0,0.00014217,3]
[330729200,1719739874698,-500.0,0.00014217,3]
[330729201,1719739874708,-500.0,0.00014217,3]
[330729202,1719739874719,-809.61,0.00014217,3]
[330729203,1719739874730,-500.0,0.00014217,3]
[330729204,1719739874740,-500.0,0.00014217,3]
[330729205,1719739874751,-500.0,0.00014217,3]
[330729206,1719739874761,-500.0,0.00014217,3]
[330729207,1719739874771,-500.0,0.00014217,3]
[330729208,1719739874780,-500.0,0.00014217,3]
[330729209,1719739874791,-605.89,0.00014217,3]
[330729210,1719739874801,-500.0,0.00014217,3]
[330729211,1719739874811,-500.0,0.00014217,3]
[330729212,1719739874821,-607.09,0.00014217,3]
[330729213,1719739874831,-590.15,0.00014217,3]
[330729214,1719739874841,-247.95046545,0.00014217,3]
[330729215,1719739874850,-500.0,0.00014217,3]
[330729216,1719739874860,-586.89,0.00014217,3]
[330729217,1719739874870,-500.0,0.00014217,2]
[330729218,1719739874880,-500.0,0.00014217,3]
[330729219,1719739874890,-500.0,0.00014217,3]
[330729220,1719739874899,-500.0,0.00014217,3]
[330729221,1719739874909,-870.39,0.00014217,3]
[330729222,1719739874919,-500.0,0.00014217,3]
[330729223,1719739874929,-500.0,0.00014217,3]
[330729224,1719739874938,-500.0,0.00014217,3]
[330729225,1719739874948,-500.0,0.00014217,3]
[330729226,1719739874958,-500.0,0.00014217,3]
[330729227,1719739874967,-500.0,0.00014217,3]
[330729228,1719739874978,-621.35,0.00014217,3]
[330729229,1719739874988,-630.59,0.00014217,3]
[330729230,1719739874997,-440.73476055,0.00014217,3]
[330729231,1719739875007,-500.0,0.00014217,3]
[330729232,1719739875017,-500.0,0.00014217,3]
[330729233,1719739875027,-250.0,0.00014217,3]
[330729234,1719739875036,-500.0,0.00014217,3]
[330729235,1719739875046,-500.0,0.00014217,3]
[330729236,1719739875056,-1012.08,0.00014217,3]
[330729237,1719739875067,-500.0,0.00014217,3]
[330729238,1719739875078,-500.0,0.00014217,3]
[330729239,1719739875088,-500.0,0.00014217,3]
[330729240,1719739875098,-500.0,0.00014217,3]
[330729241,1719739875108,-500.0,0.00014217,3]
[330729242,1719739875118,-500.0,0.00014217,3]
[330729243,1719739875128,-500.0,0.00014217,3]
[330729244,1719739875138,-500.0,0.00014217,3]
[330729245,1719739875147,-500.0,0.00014217,3]
[330729246,1719739875157,-500.0,0.00014217,3]
[330729247,1719739875167,-500.0,0.00014217,3]
[330729248,1719739875176,-500.0,0.00014217,3]
[330729249,1719739875187,-500.0,0.00014217,3]
[330729250,1719739875196,-788.01,0.00014217,3]
[330729251,1719739875207,-500.0,0.00014217,3]
[330729252,1719739875216,-500.0,0.00014217,3]
[330729253,1719739875226,-843.66,0.00014217,3]
[330729254,1719739875236,-500.0,0.00014217,3]
[330729255,1719739875245,-500.45,0.00014217,3]
[330729256,1719739875255,-500.0,0.00014217,3]
[330729257,1719739875266,-500.0,0.00014217,3]
[330729258,1719739875276,-486.68588519,0.00014217,3]
[330729259,1719739875310,-500.0,0.00013998,3]
[330729260,1719739875320,-13.31411481,0.00014217,3]
[330729261,1719739875330,-500.0,0.00014217,3]
[330729262,1719739875340,-500.0,0.00014217,3]
[330729263,1719739875350,-500.0,0.00014217,3]
[330729264,1719739875360,-67.36588519,0.00014217,3]
[330729265,1719739875373,-432.63411481,0.00014217,3]
[330729266,1719739875383,-500.0,0.00014217,3]
[330729267,1719739875393,-22.98729045,0.00014217,3]
[330729268,1719739875434,-500.0,0.00014106,3]
[330729269,1719739875444,-477.01270955,0.00014217,3]
[330729270,1719739875454,-500.0,0.00014217,3]
[330729271,1719739875463,-500.0,0.00014217,3]
[330729272,1719739875473,-500.0,0.00014217,3]
[330729273,1719739875482,-545.0,0.00014217,3]
[330729274,1719739875492,-500.0,0.00014217,3]
[330729275,1719739875502,-500.0,0.00014217,3]
[330729276,1719739875512,-196.78799979,0.00014217,3]
[330729277,1719739875521,-500.0,0.00014217,3]
[330729278,1719739875532,-500.0,0.00014217,3]
[330729279,1719739875547,-500.0,0.00014217,3]
[330729280,1719739875557,-500.0,0.00014217,3]
[330729281,1719739875567,-500.0,0.00014217,3]
[330729282,1719739875579,-500.0,0.00014217,3]
[330729283,1719739875590,-500.0,0.00014217,3]
[330729284,1719739875600,-500.0,0.00014217,3]
[330729285,1719739875610,-795.23,0.00014217,3]
[330729286,1719739875622,-500.0,0.00014217,3]
[330729287,1719739875632,-508.96,0.00014217,3]
[330729288,1719739875642,-500.0,0.00014217,3]
[330729289,1719739875651,-500.0,0.00014217,3]
[330729290,1719739875661,-500.0,0.00014217,3]
[330729291,1719739875671,-500.0,0.00014217,3]
[330729292,1719739875681,-500.0,0.00014217,3]
[330729293,1719739875692,-500.0,0.00014217,3]
[330729294,1719739875702,-500.0,0.00014217,3]
[330729295,1719739875713,-500.0,0.00014217,3]
[330729296,1719739875722,-500.0,0.00014217,3]
[330729297,1719739875733,-500.0,0.00014217,3]
[330729298,1719739875742,-166.36,0.00014217,3]
[330729299,1719739875753,-500.0,0.00014217,3]
[330729300,1719739875764,-500.0,0.00014217,3]
[330729301,1719739875774,-500.0,0.00014217,3]
[330729302,1719739875786,-500.0,0.00014217,3]
[330729303,1719739875795,-500.0,0.00014217,3]
[330729304,1719739875805,-123.7054551,0.00014217,3]
[330729305,1719739877036,-155.0,0.00013989,2]
[330729306,1719739877046,-500.0,0.00013998,3]
[330729307,1719739877056,-500.0,0.00013998,3]
[330729308,1719739877066,-500.0,0.00013998,3]
[330729309,1719739877077,-500.0,0.00013998,3]
[330729310,1719739877086,-140.43012374,0.00014108,3]
[330729311,1719739877126,-359.56987626,0.00014108,3]
[330729312,1719739877137,-500.0,0.00014108,3]
[330729313,1719739877147,-262.00835398,0.00014108,3]
[330729314,1719739877159,-237.99164602,0.00014108,3]
[330729315,1719739877169,-500.0,0.00014215,3]
[330729316,1719739877179,-376.2945449,0.00014217,3]
[330729317,1719739877188,-513.93,0.00014217,3]
[330729318,1719739877198,-500.0,0.00014217,3]
[330729319,1719739877207,-500.0,0.00014217,3]
[330729320,1719739877217,-500.0,0.00014217,3]
[330729321,1719739877226,-213.18,0.00014217,3]
[330729322,1719739877235,-500.0,0.00014217,3]
[330729323,1719739877246,-500.0,0.00014217,3]
[330729324,1719739877257,-500.0,0.00014217,3]
[330729325,1719739877269,-500.0,0.00014217,3]
[330729326,1719739877279,-500.0,0.00014217,3]
[330729327,1719739877288,-768.35,0.00014217,3]
[330729328,1719739877297,-500.0,0.00014217,3]
[330729329,1719739877306,-880.8,0.00014217,3]
[330729330,1719739877318,-500.0,0.00014217,3]
[330729331,1719739877330,-500.0,0.00014217,3]
[330729332,1719739877339,-796.52,0.00014217,3]
[330729333,1719739877348,-500.0,0.00014217,3]
[330729334,1719739877357,-500.0,0.00014217,3]
[330729335,1719739877369,-500.0,0.00014217,3]
[330729336,1719739877378,-500.0,0.00014217,3]
[330729337,1719739877387,-451.63814028,0.00014217,3]
[330729338,1719739877396,-500.0,0.00014217,3]
[330729339,1719739877406,-500.0,0.00014217,3]
[330729340,1719739877416,-500.0,0.00014217,3]
[330729341,1719739877425,-782.04,0.00014217,3]
[330729342,1719739877435,-500.0,0.00014217,3]
[330729343,1719739877445,-500.0,0.00014217,3]
[330729344,1719739877455,-500.0,0.00014217,3]
[330729345,1719739877464,-707.5,0.00014217,3]
[330729346,1719739877474,-548.35,0.00014217,3]
[330729347,1719739877485,-519.02,0.00014217,3]
[330729348,1719739877494,-500.0,0.00014217,3]
[330729349,1719739877503,-500.0,0.00014217,3]
[330729350,1719739877512,-500.0,0.00014217,3]
[330729351,1719739877523,-500.0,0.00014217,3]
[330729352,1719739877533,-500.0,0.00014217,3]
[330729353,1719739877546,-1105.64,0.00014217,3]
[330729354,1719739877557,-500.0,0.00014217,3]
[330729355,1719739877566,-586.77977993,0.00014217,3]
[330729356,1719739877578,-500.0,0.00014217,3]
[330729357,1719739877587,-605.13,0.00014217,3]
[330729358,1719739877596,-500.0,0.00014217,3]
[330729359,1719739877605,-500.0,0.00014217,3]
[330729360,1719739877618,-500.0,0.00014217,3]
[330729361,1719739877627,-500.0,0.00014217,3]
[330729362,1719739877638,-500.0,0.00014217,3]
[330729363,1719739877648,-500.0,0.00014217,3]
[330729364,1719739877657,-500.0,0.00014217,3]
[330729365,1719739877667,-500.0,0.00014217,3]
[330729366,1719739877677,-500.0,0.00014217,3]
[330729367,1719739877686,-500.0,0.00014217,3]
[330729368,1719739877696,-500.0,0.00014217,3]
[330729369,1719739877705,-500.0,0.00014217,3]
[330729370,1719739877715,-500.0,0.00014217,3]
[330729371,1719739877724,-500.0,0.00014217,3]
[330729372,1719739877733,-500.0,0.00014217,3]
[330729373,1719739877742,-620.63,0.00014217,3]
[330729374,1719739877752,-987.91,0.00014217,3]
[330729375,1719739877762,-500.0,0.00014217,3]
[330729376,1719739877771,-532.88,0.00014217,3]
[330729377,1719739877780,-500.0,0.00014217,3]
[330729378,1719739877790,-500.0,0.00014217,3]
[330729379,1719739877800,-500.0,0.00014217,3]
[330729380,1719739877810,-500.0,0.00014217,3]
[330729381,1719739877819,-500.0,0.00014217,3]
[330729382,1719739877830,-500.0,0.00014217,3]
[330729383,1719739877839,-1052.53,0.00014217,3]
[330729384,1719739877847,-500.0,0.00014217,3]
[330729385,1719739877857,-500.0,0.00014217,3]
[330729386,1719739877866,-834.13,0.00014217,3]
[330729387,1719739877875,-500.0,0.00014217,3]
[330729388,1719739877884,-500.0,0.00014217,3]
[330729389,1719739877893,-470.94753627,0.00014217,3]
[330729390,1719739877902,-500.0,0.00014217,3]
[330729391,1719739877911,-500.0,0.00014217,3]
[330729392,1719739877920,-500.0,0.00014217,3]
[330729393,1719739877929,-500.0,0.00014217,3]
[330729394,1719739877938,-500.0,0.00014217,3]
[330729395,1719739877947,-500.0,0.00014217,3]
[330729396,1719739877956,-500.0,0.00014217,3]
[330729397,1719739877965,-685.09,0.00014217,3]
[330729398,1719739877974,-500.0,0.00014217,3]
[330729399,1719739877983,-903.83,0.00014217,3]
[330729400,1719739877992,-500.0,0.00014217,3]
[330729401,1719739878002,-500.0,0.00014217,3]
[330729402,1719739878011,-500.0,0.00014217,3]
[330729403,1719739878020,-500.0,0.00014217,3]
[330729404,1719739878029,-248.83,0.00014217,3]
[330729405,1719739878038,-500.0,0.00014217,3]
[330729406,1719739878047,-500.0,0.00014217,3]
[330729407,1719739878057,-500.0,0.00014217,3]
[330729408,1719739878065,-500.0,0.00014217,3]
[330729409,1719739878075,-500.0,0.00014217,3]
[330729410,1719739878084,-500.0,0.00014217,3]
[330729411,1719739878093,-500.0,0.00014217,3]
[330729412,1719739878102,-500.0,0.00014217,3]
[330729413,1719739878111,-603.74,0.00014217,3]
[330729414,1719739878120,-1155.23,0.00014217,3]
[330729415,1719739878130,-500.0,0.00014217,3]
[330729416,1719739878139,-862.7,0.00014217,3]
[330729417,1719739878148,-500.0,0.00014217,3]
[330729418,1719739878157,-500.0,0.00014217,3]
[330729419,1719739878166,-1062.29,0.00014217,3]
[330729420,1719739878175,-500.0,0.00014217,3]
[330729421,1719739878184,-500.0,0.00014217,3]
[330729422,1719739878193,-633.70036245,0.00014217,3]
[330729423,1719739878202,-500.0,0.00014217,3]
[330729424,1719739878212,-500.0,0.00014217,3]
[330729425,1719739878221,-500.0,0.00014217,3]
[330729426,1719739878230,-500.0,0.00014217,3]
[330729427,1719739878239,-500.0,0.00014217,3]
[330729428,1719739878248,-500.0,0.00014217,3]
[330729429,1719739878257,-500.0,0.00014217,3]
[330729430,1719739878267,-500.0,0.00014217,3]
[330729431,1719739878276,-500.0,0.00014217,3]
[330729432,1719739878285,-500.0,0.00014217,3]
[330729433,1719739878294,-500.0,0.00014217,3]
[330729434,1719739878304,-500.0,0.00014217,3]
[330729435,1719739878313,-500.0,0.00014217,3]
[330729436,1719739878322,-500.0,0.00014217,3]
[330729437,1719739878333,-960.44,0.00014217,3]
[330729438,1719739878342,-500.0,0.00014217,3]
[330729439,1719739878352,-500.0,0.00014217,3]
[330729440,1719739878361,-261.83985731,0.00014217,3]
[330729441,1719739878378,-238.16014269,0.00014217,3]
[330729442,1719739878388,-505.62,0.00014217,3]
[330729443,1719739878397,-89.80619253,0.00014217,3]
[330729444,1719739878408,-410.19380747,0.00014217,3]
[330729445,1719739878417,-158.80803918,0.00014217,3]
[330729446,1719739878428,-341.19196082,0.00014217,3]
[330729447,1719739878437,-308.80681346,0.00014217,3]
[330729448,1719739878448,-191.19318654,0.00014217,3]
[330729449,1719739878457,-500.0,0.00014217,3]
[330729450,1719739878467,-84.32513329,0.00014217,3]
[330729451,1719739878478,-415.67486671,0.00014217,3]
[330729452,1719739878487,-500.0,0.00014217,3]
[330729453,1719739878496,-834.24087437,0.00014217,3]
[330729454,1719739878508,-150.98912563,0.00014217,3]
[330729455,1719739878517,-500.0,0.00014217,3]
[330729456,1719739878526,-893.57359877,0.00014217,3]
[330729457,1719739878547,-18.97640123,0.00014217,3]
[330729458,1719739878556,-500.0,0.00014217,3]
[330729459,1719739878566,-192.4043426,0.00014217,3]
[330729460,1719739878578,-307.5956574,0.00014217,3]
[330729461,1719739878589,-684.67,0.00014217,3]
[330729462,1719739878599,-827.05,0.00014217,3]
[330729463,1719739878608,-500.0,0.00014217,3]
[330729464,1719739878621,-789.79,0.00014217,3]
[330729465,1719739878631,-500.0,0.00014217,3]
[330729466,1719739878640,-605.42,0.00014217,3]
[330729467,1719739878651,-124.80694159,0.00014217,3]
[330729468,1719739878663,-375.19305841,0.00014217,3]
[330729469,1719739878672,-49.57294995,0.00014217,3]
[330729470,1719739878683,-450.42705005,0.00014217,3]
[330729471,1719739878692,-954.17,0.00014217,3]
[330729472,1719739878702,-534.22944539,0.00014217,3]
[330729473,1719739878712,-60.46055461,0.00014217,3]
[330729474,1719739878722,-500.0,0.00014217,3]
[330729475,1719739878731,-500.0,0.00014217,3]
[330729476,1719739878740,-969.47,0.00014217,3]
[330729477,1719739878750,-500.0,0.00014217,3]
[330729478,1719739878759,-500.0,0.00014217,3]
[330729479,1719739878768,-500.0,0.00014217,3]
[330729480,1719739878777,-1200.18,0.00014217,3]
[330729481,1719739878786,-522.35,0.00014217,3]
[330729482,1719739878796,-500.0,0.00014217,3]
[330729483,1719739878805,-500.0,0.00014217,3]
[330729484,1719739878815,-147.79173032,0.00014217,3]
[330729485,1719739878827,-352.20826968,0.00014217,3]
[330729486,1719739878837,-500.0,0.00014217,3]
[330729487,1719739878846,-500.0,0.00014217,3]
[330729488,1719739878855,-529.82673388,0.00014217,3]
[330729489,1719739878864,-500.0,0.00014217,3]
[330729490,1719739878873,-500.0,0.00014217,3]
[330729491,1719739878882,-500.0,0.00014217,3]
[330729492,1719739878891,-500.0,0.00014217,3]
[330729493,1719739878901,-500.0,0.00014217,3]
[330729494,1719739878910,-1443.55,0.00014217,3]
[330729495,1719739878919,-500.0,0.00014217,3]
[330729496,1719739878929,-178.97751865,0.00014217,3]
[330729497,1719739878956,-321.02248135,0.00014217,3]
[330729498,1719739878966,-500.0,0.00014217,3]
[330729499,1719739878976,-550.35,0.00014217,3]
[330729500,1719739878985,-500.0,0.00014217,3]
[330729501,1719739878994,-531.01,0.00014217,3]
[330729502,1719739879003,-500.0,0.00014217,3]
[330729503,1719739879016,-662.16,0.00014217,3]
[330729504,1719739879030,-500.0,0.00014217,3]
[330729505,1719739879043,-500.0,0.00014217,3]
[330729506,1719739879056,-751.17,0.00014217,3]
[330729507,1719739879067,-579.05,0.00014217,3]
[330729508,1719739879080,-500.0,0.00014217,3]
[330729509,1719739879092,-469.57,0.00014217,3]
[330729510,1719739879105,-500.0,0.00014217,3]
[330729511,1719739879118,-500.0,0.00014217,3]
[330729512,1719739879131,-500.0,0.00014217,3]
[330729513,1719739879143,-500.0,0.00014217,3]
[330729514,1719739879159,-500.0,0.00014217,3]
[330729515,1719739879172,-500.0,0.00014217,3]
[330729516,1719739879185,-789.36,0.00014217,3]
[330729517,1719739879198,-789.06,0.00014217,3]
[330729518,1719739879211,-500.0,0.00014217,3]
[330729519,1719739879224,-500.0,0.00014217,3]
[330729520,1719739879236,-500.0,0.00014217,3]
[330729521,1719739879248,-500.0,0.00014217,3]
[330729522,1719739879261,-500.0,0.00014217,3]
[330729523,1719739879273,-500.0,0.00014217,3]
[330729524,1719739879285,-500.0,0.00014217,3]
[330729525,1719739879296,-500.0,0.00014217,3]
[330729526,1719739879307,-624.98,0.00014217,3]
[330729527,1719739879319,-500.0,0.00014217,3]
[330729528,1719739879332,-500.0,0.00014217,3]
[330729529,1719739879344,-1046.08,0.00014217,3]
[330729530,1719739879357,-500.0,0.00014217,3]
[330729531,1719739879369,-1003.89,0.00014217,3]
[330729532,1719739879382,-820.45,0.00014217,3]
[330729533,1719739879395,-628.6,0.00014217,3]
[330729534,1719739879408,-500.0,0.00014217,3]
[330729535,1719739879421,-500.0,0.00014217,3]
[330729536,1719739879432,-211.86,0.00014217,3]
[330729537,1719739879442,-500.0,0.00014217,2]
[330729538,1719739879452,-769.38,0.00014217,3]
[330729539,1719739879464,-583.25,0.00014217,3]
[330729540,1719739879476,-500.0,0.00014217,3]
[330729541,1719739879490,-500.0,0.00014217,3]
[330729542,1719739879502,-1096.3,0.00014217,3]
[330729543,1719739879512,-500.0,0.00014217,3]
[330729544,1719739879522,-96.9933558,0.00014217,3]
[330729545,1719740071540,4258.6062,6.94e-05,2]
[330729546,1719740103205,155.57608458,8.412e-05,2]
[330729554,1719740231229,8176.0,0.00026,120]
[330729556,1719740334343,522.68,0.00010782,2]
[330729559,1719740490121,4092.05383887,0.00011098,2]
[330729564,1719740773715,533.11260756,0.00011098,2]
[330729565,1719740774557,944.8159421,0.00011098,2]
[330729566,1719740818204,-1198.6834601,0.00011199,2]
[330729567,1719740826471,149579.26986378,0.000225,120]
[330729568,1719740826513,5000.0,0.000225,120]
[330729569,1719740826540,549503.98940617,0.000225,120]
[330729570,1719740826568,400000.0,0.000225,120]
[330729571,1719740826604,10000.0,0.000225,120]
[330729572,1719740826631,410056.0,0.000225,120]
[330729573,1719740826686,5000000.0,0.000225,120]
[330729574,1719740826716,211000.0,0.000225,120]
[330729575,1719740826745,140835.7720598,0.000225,120]
[330729577,1719740834400,9236.41322618,0.00011097,2]
[330729579,1719741010804,158.29089989,0.00011098,2]
[330729580,1719741021195,155.0,0.00011098,2]
[330729581,1719741021416,205.32220319,0.00011098,2]
[330729582,1719741025234,515.54,0.00010333,2]
[330729587,1719741032872,-300.0,0.00011198,2]
[330729588,1719741032882,-327.85298596,0.00011199,2]
[330729589,1719741032900,-1440.43885638,0.00011199,2]
[330729591,1719741032914,-19117.80208991,0.00011199,2]
[330729593,1719741032924,-10526.43683256,0.00011199,2]
[330729595,1719741032933,-706.85279455,0.00011199,2]
[330729597,1719741032944,-22324.85545764,0.000118,2]
[330729598,1719741032954,-5590.67,0.00012262,2]
[330729599,1719741032964,-1119.56,0.00012269,2]
[330729600,1719741032973,-292.43923433,0.00012273,2]
[330729601,1719741032985,-187.75,0.00012274,2]
[330729602,1719741032995,-1991.95009786,0.00012292,2]
[330729603,1719741033007,-21908.04990214,0.00012292,2]
[330729604,1719741033017,-420.0,0.00012303,2]
[330729605,1719741033026,-499.99,0.00012303,2]